fUST/lending_fUST_20241217
["ID","MTS","AMOUNT","RATE_DAILY","PERIOD"]
[345669900,1734415909614,-160.35,0.0002929,120]
[345669901,1734415909672,-280.0,0.0002939,120]
[345669902,1734415909720,-304833.78538877,0.000295,120]
[345669903,1734415909791,-1000.0,0.0003,120]
[345669904,1734415909838,-2026.97,0.0003,120]
[345669905,1734415909881,-151.0,0.0003,120]
[345669906,1734415909928,-32757.0,0.0003,120]
[345669907,1734415909978,-1000.0,0.0003,120]
[345669908,1734415910024,-151.0,0.0003,120]
[345669909,1734415910076,-4058.04,0.0003,120]
[345669910,1734415910126,-5000.0,0.0003,120]
[345669911,1734415910175,-5000.0,0.0003,120]
[345669912,1734415910224,-5000.0,0.0003,120]
[345669913,1734415910272,-3591.0,0.0003,120]
[345669914,1734415910318,-1600.0,0.000301,120]
[345669915,1734415910371,-566.82,0.00030136,120]
[345669916,1734415910418,-566.82,0.00030136,120]
[345669917,1734415910464,-566.82,0.00030136,120]
[345669918,1734415910512,-566.82,0.00030136,120]
[345669919,1734415910564,-566.82,0.00030136,120]
[345669920,1734415910620,-566.82,0.00030136,120]
[345669921,1734415910672,-566.82,0.00030136,120]
[345669922,1734415910726,-566.82,0.00030136,120]
[345669923,1734415910784,-566.82,0.00030136,120]
[345669924,1734415910842,-566.82,0.00030136,120]
[345669925,1734415910890,-566.82,0.00030136,120]
[345669926,1734415910947,-566.82,0.0003041,120]
[345669927,1734415911002,-566.82,0.00030684,120]
[345669928,1734415911056,-566.82,0.00030958,120]
[345669929,1734415911108,-464.0,0.00031,120]
[345669930,1734415911155,-1000.0,0.00031,120]
[345669931,1734415911206,-566.82,0.00031232,120]
[345669932,1734415911263,-566.82,0.00031506,120]
[345669933,1734415911319,-566.82,0.0003178,120]
[345669934,1734415911370,-151.0,0.00031945,120]
[345669935,1734415911417,-2120.27996666,0.00032,120]
[345669936,1734415911465,-1000.0,0.00032,120]
[345669937,1734415911512,-30067.0,0.00032,120]
[345669938,1734415911559,-1000.0,0.00032,120]
[345669939,1734415911606,-9034.0,0.00032,60]
[345669940,1734415911652,-5000.0,0.00032,60]
[345669941,1734415911704,-566.82,0.00032054,120]
[345669942,1734415911759,-566.82,0.00032328,120]
[345669943,1734415911811,-151.0,0.00032411,120]
[345669944,1734415911860,-372.415,0.000325,120]
[345669945,1734415911910,-372.415,0.000325,120]
[345669946,1734415911959,-372.415,0.000325,120]
[345669947,1734415912007,-372.415,0.000325,120]
[345669948,1734415912055,-372.416,0.000325,120]
[345669949,1734415912104,-566.82,0.00032602,120]
[345669950,1734415912157,-4261.61809328,0.00032843,90]
[345669951,1734415912202,-500.0,0.00032876,45]
[345669952,1734415912249,-500.0,0.00032876,49]
[345669953,1734415912297,-558.424872,0.00032876,53]
[345669954,1734415912349,-566.82,0.00032876,120]
[345669955,1734415912402,-750.0,0.00033,120]
[345669956,1734415912450,-1000.0,0.00033,120]
[345669957,1734415912497,-8000.0,0.00033,60]
[345669958,1734415912547,-566.82,0.0003315,120]
[345669959,1734415912601,-566.82,0.00033424,120]
[345669960,1734415912651,-566.9918998,0.00033698,120]
[345669961,1734415912700,-151.0,0.0003389,120]
[345669962,1734415912748,-1000.0,0.00034,120]
[345669963,1734415912795,-1000.0,0.00034,120]
[345669964,1734415912845,-79616.07293102,0.00034,120]
[345669965,1734415912893,-500.106,0.0003402,120]
[345669966,1734415912940,-500.0,0.00034246,40]
[345669967,1734415912991,-19462.22047287,0.00034555,120]
[345669968,1734415913040,-99931.95309011,0.00034795,120]
[345669969,1734415913091,-151.0,0.00034822,120]
[345669970,1734415913292,-1333.0,0.00034849,120]
[345669971,1734415913345,-1000.0,0.00035,120]
[345669972,1734415913393,-2290.0,0.00035,120]
[345669973,1734415913442,-2090.60394,0.00035,60]
[345669974,1734415913492,-11906.33764246,0.00035,120]
[345669975,1734415913541,-4565.05020747,0.00035,120]
[345669976,1734415913594,-3821.09496126,0.00035,120]
[345669977,1734415913642,-1000.0,0.00035,120]
[345669978,1734415913688,-200.0,0.00035,120]
[345669979,1734415913736,-1391.21461881,0.00035,120]
[345669980,1734415913783,-15972.36751208,0.00035,120]
[345669981,1734415913832,-279.84,0.00035,69]
[345669982,1734415913879,-4536.85103474,0.00035,120]
[345669983,1734415913926,-5607.81182405,0.00035,120]
[345669984,1734415913973,-10184.31012775,0.00035,120]
[345669985,1734415914022,-3548.09037859,0.00035,120]
[345669986,1734415914071,-4716.08560372,0.00035,120]
[345669987,1734415914119,-109201.22001713,0.00035,120]
[345669988,1734415914167,-58272.72696292,0.00035,120]
[345669989,1734415918794,-441726.27303708,0.00035,120]
[345669990,1734415918846,-377064.24804105,0.00035,120]
[345669991,1734415918895,-4699.90513784,0.000351,120]
[345669992,1734415918944,-500.157,0.0003522,120]
[345669993,1734415918995,-500.0,0.00035616,42]
[345669994,1734415919045,-5690.816626,0.00035616,120]
[345669996,1734415938045,-762.799999,0.00028724,120]
[345669997,1734415938099,-9250.00314937,0.00028724,120]
[345670013,1734416434574,1379.5,0.0002556,120]
[345670028,1734416917670,3035.89676829,0.00025,120]
[345670078,1734417032327,-1794.18095559,0.00020971,2]
[345670141,1734417038942,-3205.81904441,0.00020971,2]
[345670143,1734417038952,-2110.22785394,0.00022701,2]
[345670145,1734417038962,-175.056892,0.00024304,2]
[345670147,1734417038971,-300.0,0.00024364,2]
[345670149,1734417038981,-533.0,0.00024365,2]
[345670151,1734417038991,-2154.0,0.00024365,2]
[345670153,1734417039001,-2368.0,0.00024365,2]
[345670155,1734417039010,-438.666,0.000247,2]
[345670157,1734417039019,-601.23838231,0.0002496,2]
[345670159,1734417039028,-3642.16432198,0.000252,2]
[345670161,1734417039038,-500.0,0.00025285,9]
[345670164,1734417039048,-8221.54611564,0.00025612,120]
[345672203,1734417321897,9000.0,0.00020222,2]
[345672204,1734417586952,165.342997,0.00013973,2]
[345672206,1734417839635,500.0,0.00025,120]
[345672211,1734417941460,1012.0,0.00025,120]
[345672212,1734417979447,1000.0,0.00025,120]
[345672237,1734418232320,-416.33,0.00022044,7]
[345672648,1734418557726,165.342997,0.00013973,2]
[345672710,1734419432498,-259.78888675,0.00022041,2]
[345672716,1734419432543,-40.21111325,0.00022041,2]
[345672718,1734419432553,-300.0,0.00022041,2]
[345672720,1734419432562,-4458.80448386,0.00022042,2]
[345672722,1734419432571,-721.61893111,0.00022042,2]
[345672724,1734419432580,-3640.97280547,0.00022044,7]
[345672726,1734419432589,-420.0,0.0002395,2]
[345672728,1734419432597,-420.0,0.00024245,2]
[345672751,1734419432787,-2154.0,0.00024396,2]
[345672753,1734419432798,-533.0,0.00024396,2]
[345672755,1734419432807,-2368.0,0.00024396,2]
[345672757,1734419432817,-461.974,0.000247,2]
[345672759,1734419432825,-191.19,0.00024863,2]
[345672761,1734419432836,-185.89127825,0.00024905,2]
[345672763,1734419432846,-167.8708504,0.00024908,2]
[345672765,1734419432855,-500.0,0.00024999,2]
[345672767,1734419432865,-500.0,0.00024999,6]
[345672769,1734419432874,-379.33325006,0.00024999,2]
[345673077,1734419439305,-120.66674994,0.00024999,2]
[345673079,1734419439315,-501.03336381,0.00024999,2]
[345673081,1734419439325,-526.11,0.00024999,6]
[345673084,1734419439335,-1111.45,0.00024999,6]
[345673086,1734419439344,-572.18988201,0.00025,2]
[345673088,1734419439355,-1022.13941988,0.00025,2]
[345673171,1734419440600,-1405.67069811,0.00025,2]
[345673172,1734419440610,-166.29,0.00025,8]
[345673173,1734419440620,-14462.17434114,0.00025,2]
[345673241,1734419443535,-8037.0,0.00025,2]
[345673277,1734419836780,4699.0,0.0002,10]
[345673330,1734420632768,-165.597886,0.00022044,7]
[345673331,1734420632777,-3319.94811191,0.00022044,7]
[345673365,1734420639508,-321.02469356,0.00022044,7]
[345673366,1734420639518,-524.98275357,0.0002277,2]
[345673367,1734420639528,-3000.0,0.00023,2]
[345673368,1734420639537,-300.0,0.00023538,2]
[345673369,1734420639547,-300.0,0.00023538,2]
[345673370,1734420639556,-3140.1675729,0.00023539,11]
[345673371,1734420639566,-550.80520766,0.00023893,2]
[345673372,1734420639578,-2583.99479234,0.00023893,2]
[345673373,1734420639588,-462.058,0.0002394,2]
[345673374,1734420639598,-151.0,0.00024407,7]
[345673375,1734420639607,-151.0,0.00024407,7]
[345673376,1734420639617,-151.0,0.00024407,7]
[345673377,1734420639634,-155.886338,0.00024407,7]
[345673378,1734420639643,-151.0,0.00024407,7]
[345673379,1734420639653,-151.0,0.00024407,7]
[345673380,1734420639663,-151.0,0.00024407,7]
[345673381,1734420639673,-151.0,0.00024407,7]
[345673382,1734420639687,-264.300019,0.00024407,7]
[345673383,1734420639696,-264.300019,0.00024407,7]
[345673384,1734420639705,-264.300019,0.00024407,7]
[345673385,1734420639714,-164.76286452,0.00024407,7]
[345673386,1734420639727,-99.53715448,0.00024407,7]
[345673387,1734420639736,-264.300019,0.00024407,7]
[345673388,1734420639746,-264.300019,0.00024407,7]
[345673389,1734420639755,-151.0,0.00024407,7]
[345673390,1734420639765,-151.0,0.00024407,7]
[345673391,1734420639774,-151.0,0.00024407,7]
[345673392,1734420639783,-151.0,0.00024407,7]
[345673393,1734420639793,-151.0,0.00024407,7]
[345673394,1734420639803,-151.0,0.00024407,7]
[345673395,1734420639812,-151.0,0.00024407,7]
[345673396,1734420639821,-151.0,0.00024407,7]
[345673397,1734420639831,-151.0,0.00024407,7]
[345673398,1734420639845,-151.0,0.00024407,7]
[345673399,1734420639854,-151.0,0.00024407,7]
[345673400,1734420639864,-457.507427,0.00024407,7]
[345673401,1734420639873,-457.507427,0.00024407,7]
[345673402,1734420639883,-457.507427,0.00024407,7]
[345673403,1734420639892,-457.507427,0.00024407,7]
[345673404,1734420639901,-457.507427,0.00024407,7]
[345673405,1734420639910,-457.507427,0.00024407,7]
[345673406,1734420639920,-151.0,0.00024407,7]
[345673407,1734420639929,-151.0,0.00024407,7]
[345673408,1734420639939,-151.0,0.00024407,7]
[345673409,1734420639948,-151.0,0.00024407,7]
[345673411,1734420639958,-151.0,0.00024407,7]
[345673413,1734420639970,-151.0,0.00024407,7]
[345673414,1734420639980,-151.0,0.00024407,7]
[345673415,1734420639990,-151.0,0.00024407,7]
[345673416,1734420639999,-151.0,0.00024407,7]
[345673418,1734420640009,-151.0,0.00024407,7]
[345673419,1734420640019,-229.260872,0.00024407,7]
[345673420,1734420640028,-417.124226,0.00024407,7]
[345673421,1734420640038,-417.124226,0.00024407,7]
[345673422,1734420640047,-417.124226,0.00024407,7]
[345673423,1734420640057,-417.124226,0.00024407,7]
[345673425,1734420640244,-417.124226,0.00024407,7]
[345673426,1734420640255,-417.124226,0.00024407,7]
[345673427,1734420640266,-151.0,0.00024407,7]
[345673428,1734420640275,-151.0,0.00024407,7]
[345673429,1734420640285,-162.096226,0.00024407,7]
[345673430,1734420640296,-151.0,0.00024407,7]
[345673431,1734420640306,-151.0,0.00024407,7]
[345673432,1734420640316,-151.0,0.00024407,7]
[345673433,1734420640326,-151.0,0.00024407,7]
[345673434,1734420640336,-151.0,0.00024407,7]
[345673435,1734420640347,-151.0,0.00024407,7]
[345673436,1734420640357,-151.0,0.00024407,7]
[345673437,1734420640367,-151.0,0.00024407,7]
[345673438,1734420640378,-151.0,0.00024407,7]
[345673439,1734420640388,-151.0,0.00024407,7]
[345673440,1734420640398,-151.0,0.00024407,7]
[345673441,1734420640407,-151.0,0.00024407,7]
[345673442,1734420640417,-151.0,0.00024407,7]
[345673443,1734420640428,-151.0,0.00024407,7]
[345673444,1734420640437,-151.0,0.00024407,7]
[345673445,1734420640447,-151.0,0.00024407,7]
[345673446,1734420640457,-151.0,0.00024407,7]
[345673447,1734420640467,-156.395316,0.00024407,7]
[345673448,1734420640476,-151.0,0.00024407,7]
[345673449,1734420640486,-151.0,0.00024407,7]
[345673450,1734420640495,-151.0,0.00024407,7]
[345673451,1734420640505,-153.300542,0.00024407,7]
[345673452,1734420640515,-151.0,0.00024407,7]
[345673453,1734420640524,-151.0,0.00024407,7]
[345673454,1734420640534,-268.068388,0.00024407,7]
[345673455,1734420640544,-268.573456,0.00024407,7]
[345673456,1734420640554,-151.0,0.00024407,7]
[345673457,1734420640564,-268.573456,0.00024407,7]
[345673458,1734420640573,-151.0,0.00024407,7]
[345673459,1734420640584,-151.0,0.00024407,7]
[345673460,1734420640594,-268.573456,0.00024407,7]
[345673461,1734420640603,-268.573456,0.00024407,7]
[345673462,1734420640613,-268.573456,0.00024407,7]
[345673463,1734420640625,-268.573456,0.00024407,7]
[345673464,1734420640639,-268.573456,0.00024407,7]
[345673465,1734420640649,-151.0,0.00024407,7]
[345673466,1734420640658,-268.573456,0.00024407,7]
[345673467,1734420640669,-215.558621,0.00024407,7]
[345673468,1734420640678,-268.573456,0.00024407,7]
[345673469,1734420640687,-268.573456,0.00024407,7]
[345673470,1734420640696,-1162.99692,0.00024407,7]
[345673471,1734420640705,-1162.99692,0.00024407,7]
[345673472,1734420640715,-167.61230192,0.00024407,7]
[345673473,1734420640727,-475.67,0.00024407,7]
[345673474,1734420640971,-519.71461808,0.00024407,7]
[345673475,1734420640983,-1162.99692,0.00024407,7]
[345673476,1734420640993,-1162.99692,0.00024407,7]
[345673477,1734420641005,-1162.99692,0.00024407,7]
[345673478,1734420641016,-1162.99692,0.00024407,7]
[345673479,1734420641026,-1162.99692,0.00024407,7]
[345673480,1734420641035,-1162.99692,0.00024407,7]
[345673481,1734420641044,-1162.99692,0.00024407,7]
[345673482,1734420641053,-151.0,0.00024407,7]
[345673483,1734420641063,-152.439084,0.00024407,7]
[345673484,1734420641072,-2154.0,0.00024407,2]
[345673485,1734420641081,-533.0,0.00024407,2]
[345673486,1734420641091,-2368.0,0.00024407,2]
[345673487,1734420641100,-4458.80448386,0.00024657,2]
[345673488,1734420641109,-721.61893111,0.00024657,2]
[345673489,1734420641119,-151.0,0.00024657,7]
[345673490,1734420641135,-151.0,0.00024657,7]
[345673491,1734420641145,-151.0,0.00024657,7]
[345673492,1734420641158,-500.0,0.00024657,6]
[345673493,1734420641167,-7902.33,0.00024657,6]
[345673494,1734420641177,-1086.5,0.00024657,6]
[345673495,1734420641186,-151.0,0.00024657,7]
[345673496,1734420641196,-500.0,0.00024657,6]
[345673497,1734420641206,-7369.28,0.00024657,6]
[345673498,1734420641215,-500.0,0.00024657,6]
[345673499,1734420641225,-151.0,0.00024657,7]
[345673500,1734420641238,-151.0,0.00024657,7]
[345673501,1734420641247,-151.0,0.00024657,7]
[345673502,1734420641257,-11808.82,0.00024657,6]
[345673503,1734420641266,-457.507427,0.00024657,7]
[345673504,1734420641276,-457.507427,0.00024657,7]
[345673505,1734420641285,-457.507427,0.00024657,7]
[345673506,1734420641295,-500.0,0.00024657,6]
[345673507,1734420641304,-457.507427,0.00024657,7]
[345673508,1734420641314,-457.507427,0.00024657,7]
[345673509,1734420641323,-457.507427,0.00024657,7]
[345673510,1734420641332,-151.0,0.00024657,7]
[345673511,1734420641341,-151.0,0.00024657,7]
[345673512,1734420641351,-151.0,0.00024657,7]
[345673513,1734420641360,-500.0,0.00024657,6]
[345673514,1734420641370,-151.0,0.00024657,7]
[345673515,1734420641387,-151.0,0.00024657,7]
[345673516,1734420641397,-151.0,0.00024657,7]
[345673517,1734420641406,-417.124226,0.00024657,7]
[345673518,1734420641416,-417.124226,0.00024657,7]
[345673519,1734420641426,-417.124226,0.00024657,7]
[345673520,1734420641435,-1881.91,0.00024657,6]
[345673521,1734420641445,-417.124226,0.00024657,7]
[345673522,1734420641455,-417.124226,0.00024657,7]
[345673523,1734420641465,-417.124226,0.00024657,7]
[345673524,1734420641474,-417.124226,0.00024657,7]
[345673525,1734420641484,-417.124226,0.00024657,7]
[345673526,1734420641494,-417.124226,0.00024657,7]
[345673527,1734420641504,-417.124226,0.00024657,7]
[345673528,1734420641514,-1141.29,0.00024657,6]
[345673529,1734420641524,-502.84573862,0.00024657,6]
[345673530,1734420641534,-500.0,0.00024657,6]
[345673531,1734420641544,-1114.98,0.00024657,6]
[345673532,1734420641554,-1939.88,0.00024657,6]
[345673533,1734420641564,-500.0,0.00024657,6]
[345673534,1734420641574,-500.0,0.00024657,6]
[345673535,1734420641585,-500.0,0.00024657,6]
[345673536,1734420641594,-500.0,0.00024657,6]
[345673537,1734420641604,-500.0,0.00024657,6]
[345673538,1734420641614,-500.0,0.00024657,6]
[345673539,1734420641626,-695.36,0.00024657,6]
[345673540,1734420641636,-151.0,0.00024657,7]
[345673541,1734420641645,-151.0,0.00024657,7]
[345673542,1734420641655,-151.0,0.00024657,7]
[345673543,1734420641664,-282.991466,0.00024657,7]
[345673544,1734420641674,-500.0,0.00024657,6]
[345673545,1734420641683,-4222.65,0.00024657,6]
[345673546,1734420641693,-574.39664521,0.00024657,6]
[345673547,1734420641702,-500.0,0.00024657,6]
[345673548,1734420641712,-1228.37,0.00024657,6]
[345673549,1734420641721,-1917.44,0.00024657,6]
[345673550,1734420641731,-151.0,0.00024657,7]
[345673551,1734420641740,-151.0,0.00024657,7]
[345673553,1734420641749,-151.0,0.00024657,7]
[345673555,1734420641759,-151.0,0.00024657,7]
[345673556,1734420641768,-151.0,0.00024657,7]
[345673557,1734420641778,-151.0,0.00024657,7]
[345673558,1734420641787,-500.0,0.00024657,6]
[345673559,1734420641796,-151.0,0.00024657,7]
[345673560,1734420641806,-151.0,0.00024657,7]
[345673561,1734420641815,-223.045028,0.00024657,7]
[345673562,1734420641824,-500.0,0.00024657,6]
[345673563,1734420641833,-5420.32,0.00024657,6]
[345673564,1734420641843,-500.0,0.00024657,6]
[345673565,1734420641852,-782.54,0.00024657,6]
[345673566,1734420641862,-1999.78,0.00024657,6]
[345673567,1734420641871,-1737.42,0.00024657,6]
[345673568,1734420641883,-500.0,0.00024657,6]
[345673569,1734420641894,-1961.94,0.00024657,6]
[345673570,1734420641904,-500.0,0.00024657,6]
[345673571,1734420641913,-500.0,0.00024657,6]
[345673572,1734420641923,-849.78,0.00024657,6]
[345673573,1734420641932,-500.0,0.00024657,6]
[345673574,1734420641941,-500.0,0.00024657,6]
[345673575,1734420641951,-577.61,0.00024657,6]
[345673576,1734420641961,-500.0,0.00024657,6]
[345673577,1734420641971,-1733.21,0.00024657,6]
[345673578,1734420641980,-151.0,0.00024657,7]
[345673579,1734420641991,-2733.91,0.00024657,6]
[345673580,1734420642001,-268.573456,0.00024657,7]
[345673581,1734420642011,-151.0,0.00024657,7]
[345673582,1734420642020,-268.573456,0.00024657,7]
[345673583,1734420642030,-151.0,0.00024657,7]
[345673584,1734420642039,-268.573456,0.00024657,7]
[345673585,1734420642049,-151.0,0.00024657,7]
[345673586,1734420642059,-268.573456,0.00024657,7]
[345673587,1734420642068,-151.0,0.00024657,7]
[345673588,1734420642078,-268.573456,0.00024657,7]
[345673589,1734420642087,-268.573456,0.00024657,7]
[345673590,1734420642096,-500.0,0.00024657,6]
[345673591,1734420642106,-268.573456,0.00024657,7]
[345673592,1734420642115,-268.573456,0.00024657,7]
[345673593,1734420642127,-500.0,0.00024657,2]
[345673594,1734420642136,-268.573456,0.00024657,7]
[345673595,1734420642146,-268.573448,0.00024657,7]
[345673596,1734420642157,-192.51628547,0.00024657,6]
[345673597,1734420642168,-2379.01,0.00024657,6]
[345673598,1734420642177,-500.0,0.00024657,2]
[345673599,1734420642187,-504.19,0.00024657,6]
[345673600,1734420642196,-1269.78,0.00024657,6]
[345673601,1734420642206,-500.0,0.00024657,6]
[345673602,1734420642217,-2769.41,0.00024657,6]
[345673603,1734420642227,-500.0,0.00024657,6]
[345673604,1734420642236,-405.62557342,0.00024657,6]
[345673605,1734420642247,-1162.99692,0.00024657,7]
[345673606,1734420642257,-1162.99692,0.00024657,7]
[345673607,1734420642266,-1162.99692,0.00024657,7]
[345673608,1734420642276,-1162.99692,0.00024657,7]
[345673609,1734420642286,-1162.99692,0.00024657,7]
[345673610,1734420642295,-500.0,0.00024657,6]
[345673611,1734420642305,-1162.99692,0.00024657,7]
[345673612,1734420642315,-1162.99692,0.00024657,7]
[345673613,1734420642324,-500.0,0.00024657,6]
[345673614,1734420642334,-1162.99692,0.00024657,7]
[345673615,1734420642344,-1162.99692,0.00024657,7]
[345673616,1734420642353,-1065.14,0.00024657,6]
[345673617,1734420642363,-1162.99692,0.00024657,7]
[345673618,1734420642375,-500.0,0.00024657,6]
[345673619,1734420642384,-500.0,0.00024657,6]
[345673620,1734420642393,-500.0,0.00024657,6]
[345673621,1734420642403,-616.73,0.00024657,6]
[345673622,1734420642412,-500.0,0.00024657,6]
[345673623,1734420642421,-1940.33,0.00024657,6]
[345673624,1734420642431,-500.0,0.00024657,6]
[345673625,1734420642440,-500.0,0.00024657,6]
[345673626,1734420642450,-500.0,0.00024657,6]
[345673627,1734420642459,-167.8708504,0.00024898,2]
[345673628,1734420642469,-782.54,0.00024914,6]
[345673629,1734420642479,-500.0,0.00024914,6]
[345673630,1734420642489,-500.0,0.00024915,6]
[345673631,1734420642498,-500.0,0.00024915,6]
[345673632,1734420642508,-336.28985947,0.00024915,6]
[345673633,1734420642518,-500.0,0.00024915,6]
[345673634,1734420642527,-849.8,0.00024915,6]
[345673635,1734420642538,-500.0,0.00024915,6]
[345673636,1734420642547,-151.0,0.00024915,7]
[345673637,1734420642557,-320.60146103,0.00024915,6]
[345673638,1734420642566,-500.0,0.00024915,6]
[345673639,1734420642575,-501.52015871,0.00024915,6]
[345673640,1734420642585,-500.0,0.00024915,6]
[345673641,1734420642595,-500.0,0.00024915,6]
[345673642,1734420642604,-2467.89,0.00024915,6]
[345673643,1734420642614,-500.0,0.00024915,6]
[345673644,1734420642625,-1712.61,0.00024915,2]
[345673645,1734420642635,-500.0,0.00024915,6]
[345673646,1734420642645,-500.0,0.00024915,6]
[345673647,1734420642654,-2879.98,0.00024915,6]
[345673648,1734420642664,-2242.07,0.00024915,6]
[345673649,1734420642673,-521.22,0.00024915,6]
[345673650,1734420642683,-151.0,0.00024915,7]
[345673651,1734420642692,-151.0,0.00024915,7]
[345673652,1734420642702,-151.0,0.00024915,7]
[345673653,1734420642711,-151.0,0.00024915,7]
[345673654,1734420642721,-151.0,0.00024915,7]
[345673655,1734420642730,-151.0,0.00024915,7]
[345673656,1734420642740,-151.0,0.00024915,7]
[345673657,1734420642749,-151.0,0.00024915,7]
[345673658,1734420642759,-151.0,0.00024915,7]
[345673659,1734420642768,-151.0,0.00024915,7]
[345673660,1734420642777,-500.0,0.00024915,6]
[345673661,1734420642787,-151.0,0.00024915,7]
[345673662,1734420642797,-151.0,0.00024915,7]
[345673663,1734420642806,-151.0,0.00024915,7]
[345673664,1734420642816,-151.0,0.00024915,7]
[345673665,1734420642827,-500.0,0.00024915,6]
[345673666,1734420642839,-900.66333035,0.00024915,6]
[345673676,1734420644144,-151.0,0.00024407,7]
[345673677,1734420644156,-490.98896675,0.00024657,6]
[345673678,1734420644170,-9.01103325,0.00024657,6]
[345673679,1734420644180,-46.77666965,0.00024915,6]
[345673680,1734420644190,-707.14,0.00024915,2]
[345673681,1734420644201,-500.0,0.00024915,6]
[345673682,1734420644211,-500.0,0.00024915,6]
[345673683,1734420644221,-2615.92,0.00024915,6]
[345673684,1734420644230,-264.300019,0.00024915,7]
[345673685,1734420644242,-264.300019,0.00024915,7]
[345673686,1734420644251,-264.300019,0.00024915,7]
[345673687,1734420644261,-264.300019,0.00024915,7]
[345673688,1734420644271,-264.300019,0.00024915,7]
[345673689,1734420644280,-264.300019,0.00024915,7]
[345673690,1734420644291,-264.300019,0.00024915,7]
[345673691,1734420644300,-264.300019,0.00024915,7]
[345673692,1734420644310,-264.300019,0.00024915,7]
[345673693,1734420644321,-264.300019,0.00024915,7]
[345673694,1734420644331,-264.300019,0.00024915,7]
[345673695,1734420644341,-264.300019,0.00024915,7]
[345673696,1734420644351,-30.68274986,0.00024915,7]
[345673700,1734420645330,-233.61726914,0.00024915,7]
[345673701,1734420645340,-264.300015,0.00024915,7]
[345673703,1734420645350,-500.0,0.00024915,6]
[345673705,1734420645360,-1308.25,0.00024915,6]
[345673707,1734420645370,-151.0,0.00024915,7]
[345673709,1734420645382,-151.0,0.00024915,7]
[345673710,1734420645392,-238.991568,0.00024915,7]
[345673711,1734420645402,-500.0,0.00024915,6]
[345673712,1734420645411,-502.6007362,0.00024915,6]
[345673713,1734420645421,-500.0,0.00024915,6]
[345673714,1734420645431,-500.0,0.00024915,6]
[345673715,1734420645441,-767.22,0.00024915,6]
[345673716,1734420645450,-151.0,0.00024915,7]
[345673717,1734420645460,-151.0,0.00024915,7]
[345673718,1734420645469,-151.0,0.00024915,7]
[345673719,1734420645479,-151.0,0.00024915,7]
[345673720,1734420645488,-457.507427,0.00024915,7]
[345673721,1734420645498,-500.0,0.00024915,6]
[345673722,1734420645507,-457.507427,0.00024915,7]
[345673723,1734420645517,-457.507427,0.00024915,7]
[345673724,1734420645527,-457.507427,0.00024915,7]
[345673725,1734420645537,-457.507427,0.00024915,7]
[345673726,1734420645546,-457.507427,0.00024915,7]
[345673727,1734420645556,-457.507427,0.00024915,7]
[345673728,1734420645566,-457.507435,0.00024915,7]
[345673729,1734420645575,-500.0,0.00024915,6]
[345673730,1734420645586,-500.0,0.00024915,6]
[345673731,1734420645596,-151.0,0.00024915,7]
[345673732,1734420645605,-151.0,0.00024915,7]
[345673733,1734420645616,-151.0,0.00024915,7]
[345673734,1734420645629,-151.0,0.00024915,7]
[345673735,1734420645639,-500.0,0.00024915,6]
[345673736,1734420645649,-417.124226,0.00024915,7]